[Event "FIDE World Rapid-ch Open 2018"]
[White "Motylev, Alexander"]
[Black "Demidov, Mikhail"]
[Site "St. Petersburg"]
[Round "4.27"]
[Annotator "ChessBase"]
[Result "1-0"]
[Date "2018.12.26"]
[WhiteElo "2644"]
[BlackElo "2520"]
[PlyCount "99"]
[TimeControl "900+10"]

1. e4 {[%emt 0:0:0]} Nf6 {[%emt 0:0:0]} 2. e5 {[%emt 0:0:0]} Nd5 {[%emt 0:0:0]
} 3. d4 {[%emt 0:0:0]} d6 {[%emt 0:0:0]} 4. Nf3 {[%emt 0:0:0]} Nb6 {[%emt 0:0:0]} 5. a4 {[%emt 0:0:41]} a5 {[%emt 0:0:0]} 6. Bb5+ {[%emt 0:0:32]
} c6 {[%emt 0:0:47]} 7. Be2 {[%emt 0:0:2]} g6 {[%emt 0:1:20]} 8. 0-0 {[%emt 0:0:5]} Bg7 {[%emt 0:0:2]} 9. Bf4 {[%emt 0:0:28]} 0-0 {[%emt 0:0:20]
} 10. Qc1 {[%emt 0:0:25]} Bg4 {[%emt 0:0:44]} 11. h3 {[%emt 0:0:0]} Bxf3 {[%emt 0:0:45]} 12. Bxf3 {[%emt 0:0:1]} Na6 {[%emt 0:0:43]} 13. Rd1 {[%emt 0:0:53]} Qc7 {[%emt 0:1:12]} 14. exd6 {[%emt 0:0:20]} exd6 {[%emt 0:0:2]
} 15. c4 {[%emt 0:0:5]} Rad8 {[%emt 0:1:38]} 16. c5 {[%emt 0:0:0]} Nc8 {[%emt 0:0:2]} 17. Nc3 {[%emt 0:0:24]} Qe7 {[%emt 0:1:4]} 18. cxd6 {[%emt 0:3:21]} Nxd6 {[%emt 0:0:5]} 19. d5 {[%emt 0:0:8]} Nb4 {[%emt 0:0:52]
} 20. dxc6 {[%emt 0:0:54]} bxc6 {[%emt 0:0:6]} 21. Bxc6 {[%emt 0:1:19]
} Nf5 {[%emt 0:1:33]} 22. Bb5 {[%emt 0:1:31]} Rc8 {[%emt 0:0:0]} 23. Bd7 {[%emt 0:2:5]} Rcd8 {[%emt 0:1:25]} 24. Bxf5 {[%emt 0:0:21]} gxf5 {[%emt 0:0:2]} 25. Qe3 {[%emt 0:1:6]} Qxe3 {[%emt 0:1:14]} 26. fxe3 {[%emt 0:0:12]
} Rd3 {[%emt 0:1:9]} 27. Bc7 {[%emt 0:1:20]} Ra8 {[%emt 0:0:0]} 28. Rxd3 {[%emt 0:1:29]} Nxd3 {[%emt 0:0:1]} 29. Rb1 {[%emt 0:0:1]} Nxb2 {[%emt 0:0:28]} 30. Rxb2 {[%emt 0:0:5]} Bxc3 {[%emt 0:0:1]} 31. Rb5 {[%emt 0:0:1]
} Rc8 {[%emt 0:0:13]} 32. Bxa5 {[%emt 0:0:15]} Bxa5 {[%emt 0:0:0]} 33. Rxa5 {[%emt 0:0:2]} Rc1+ {[%emt 0:0:17]} 34. Kf2 {[%emt 0:0:1]
} Ra1 {[%emt 0:0:1]} 35. Kf3 {[%emt 0:0:17]} Kg7 {[%emt 0:0:1]} 36. Ra6 {[%emt 0:0:3]
} f6 {[%emt 0:0:16]} 37. Ra8 {[%emt 0:0:45]} Rf1+ {[%emt 0:0:0]} 38. Ke2 {[%emt 0:0:3]} Rg1 {[%emt 0:0:4]} 39. Kf2 {[%emt 0:0:8]} Ra1 {[%emt 0:0:1]} 40. a5 {[%emt 0:0:24]} Ra3 {[%emt 0:0:30]} 41. a6 {[%emt 0:0:0]} Ra1 {[%emt 0:0:5]} 42. Ke2 {[%emt 0:0:17]} Ra2+ {[%emt 0:0:2]} 43. Kd3 {[%emt 0:0:1]} Rxg2 {[%emt 0:0:18]} 44. Rc8 {[%emt 0:0:15]} Ra2 {[%emt 0:0:9]
} 45. Rc7+ {[%emt 0:0:32]} Kg6 {[%emt 0:0:5]} 46. a7 {[%emt 0:0:0]} h5 {[%emt 0:0:17]} 47. Kc3 {[%emt 0:0:8]} f4 {[%emt 0:0:16]} 48. exf4 {[%emt 0:0:2]} Kf5 {[%emt 0:0:2]} 49. Kb4 {[%emt 0:0:18]} Kxf4 {[%emt 0:0:18]
} 50. Rc4+ {[%emt 0:0:2]} 1-0

[Event "FIDE World Rapid-ch Open 2018"]
[White "Miton, Kamil"]
[Black "Amonatov, Farrukh"]
[Site "St. Petersburg"]
[Round "4.28"]
[Annotator "ChessBase"]
[Result "1/2-1/2"]
[Date "2018.12.26"]
[WhiteElo "2588"]
[BlackElo "2614"]
[PlyCount "88"]
[TimeControl "900+10"]

1. d4 {[%emt 0:0:0]} Nf6 {[%emt 0:0:0]} 2. c4 {[%emt 0:0:0]} g6 {[%emt 0:0:0]} 3. g3 {[%emt 0:0:1]} Bg7 {[%emt 0:0:0]} 4. Bg2 {[%emt 0:0:3]} c5 {[%emt 0:0:0]} 5. dxc5 {[%emt 0:1:9]} Qa5+ {[%emt 0:0:3]} 6. Nd2 {[%emt 0:0:39]
} Qxc5 {[%emt 0:0:7]} 7. Ngf3 {[%emt 0:0:3]} 0-0 {[%emt 0:0:0]} 8. 0-0 {[%emt 0:0:2]} Nc6 {[%emt 0:0:4]} 9. b3 {[%emt 0:0:36]} d5 {[%emt 0:0:8]
} 10. Bb2 {[%emt 0:0:16]} dxc4 {[%emt 0:0:24]} 11. Nxc4 {[%emt 0:0:13]
} Rd8 {[%emt 0:0:5]} 12. Qc1 {[%emt 0:0:8]} Qh5 {[%emt 0:0:0]} 13. Qg5 {[%emt 0:0:51]} Be6 {[%emt 0:1:3]} 14. Qxh5 {[%emt 0:1:11]} Nxh5 {[%emt 0:0:2]} 15. Bxg7 {[%emt 0:0:20]} Nxg7 {[%emt 0:0:3]} 16. Nfe5 {[%emt 0:0:52]} Nxe5 {[%emt 0:0:31]} 17. Nxe5 {[%emt 0:0:2]} Bd5 {[%emt 0:0:0]} 18. Rfd1 {[%emt 0:0:3]} Bxg2 {[%emt 0:0:3]} 19. Kxg2 {[%emt 0:0:0]} Ne6 {[%emt 0:0:19]} 20. Rac1 {[%emt 0:0:16]} f6 {[%emt 0:0:8]} 21. Nd3 {[%emt 0:1:18]} Kf7 {[%emt 0:0:21]} 22. Nf4 {[%emt 0:0:31]} Rxd1 {[%emt 0:0:0]} 23. Rxd1 {[%emt 0:0:2]} Nxf4+ {[%emt 0:0:20]} 24. gxf4 {[%emt 0:0:0]} Ke6 {[%emt 0:0:0]} 25. Rd4 {[%emt 0:0:22]} Rc8 {[%emt 0:0:16]} 26. Ra4 {[%emt 0:0:31]} a6 {[%emt 0:0:5]} 27. Rb4 {[%emt 0:0:6]} b5 {[%emt 0:0:0]} 28. a4 {[%emt 0:0:4]} Rc5 {[%emt 0:0:4]} 29. Kf3 {[%emt 0:0:20]} Kd5 {[%emt 0:0:25]} 30. e3 {[%emt 0:0:22]} Kc6 {[%emt 0:3:5]} 31. axb5+ {[%emt 0:0:16]
} axb5 {[%emt 0:0:3]} 32. Re4 {[%emt 0:1:0]} Kd6 {[%emt 0:0:0]} 33. Rd4+ {[%emt 0:0:27]} Ke6 {[%emt 0:2:10]} 34. Re4+ {[%emt 0:0:3]} Kf7 {[%emt 0:0:28]} 35. Rd4 {[%emt 0:0:5]} Rh5 {[%emt 0:0:11]} 36. Kg3 {[%emt 0:0:17]
} Ke6 {[%emt 0:0:1]} 37. e4 {[%emt 0:1:38]} Rc5 {[%emt 0:0:0]} 38. f3 {[%emt 0:0:4]} f5 {[%emt 0:0:36]} 39. Rd3 {[%emt 0:3:0]} Rc2 {[%emt 0:1:51]
} 40. h3 {[%emt 0:0:49]} Re2 {[%emt 0:0:34]} 41. Rd5 {[%emt 0:0:0]} fxe4 {[%emt 0:0:10]} 42. Rxb5 {[%emt 0:0:4]} Re3 {[%emt 0:1:55]} 43. Re5+ {[%emt 0:0:3]} Kf6 {[%emt 0:0:1]} 44. Rxe4 {[%emt 0:0:2]} Rxb3 {[%emt 0:0:2]
} 1/2-1/2

[Event "FIDE World Rapid-ch Open 2018"]
[White "Salem, A.R. Saleh"]
[Black "Predke, Alexandr"]
[Site "St. Petersburg"]
[Round "4.29"]
[Annotator "ChessBase"]
[Result "1-0"]
[Date "2018.12.26"]
[WhiteElo "2660"]
[BlackElo "2622"]
[PlyCount "57"]
[TimeControl "900+10"]

1. e4 {[%emt 0:0:0]} c5 {[%emt 0:0:0]} 2. Nf3 {[%emt 0:0:0]} Nf6 {[%emt 0:0:0]
} 3. Nc3 {[%emt 0:0:0]} d5 {[%emt 0:0:0]} 4. e5 {[%emt 0:0:0]} Nfd7 {[%emt 0:0:24]} 5. e6 {[%emt 0:1:50]} fxe6 {[%emt 0:0:2]} 6. d4 {[%emt 0:0:2]
} Nc6 {[%emt 0:0:18]} 7. dxc5 {[%emt 0:0:20]} Nxc5 {[%emt 0:0:0]} 8. Be3 {[%emt 0:0:8]} Qa5 {[%emt 0:0:38]} 9. Qd2 {[%emt 0:0:26]} g6 {[%emt 0:1:51]
} 10. Bb5 {[%emt 0:1:8]} Nd7 {[%emt 0:1:34]} 11. Nd4 {[%emt 0:0:0]} Nde5 {[%emt 0:0:29]} 12. Bf4 {[%emt 0:2:27]} Nc4 {[%emt 0:1:24]} 13. Bxc4 {[%emt 0:1:11]} dxc4 {[%emt 0:0:1]} 14. Nxc6 {[%emt 0:0:2]} bxc6 {[%emt 0:0:2]
} 15. Qd4 {[%emt 0:0:26]} Rg8 {[%emt 0:0:1]} 16. 0-0 {[%emt 0:0:0]} Bg7 {[%emt 0:0:27]} 17. Qxc4 {[%emt 0:0:9]} Qa6 {[%emt 0:2:16]} 18. Qe4 {[%emt 0:0:7]} Bxc3 {[%emt 0:1:35]} 19. bxc3 {[%emt 0:0:3]} Rf8 {[%emt 0:0:1]
} 20. Rad1 {[%emt 0:0:39]} Rf5 {[%emt 0:0:22]} 21. Qd4 {[%emt 0:3:43]
} e5 {[%emt 0:1:27]} 22. Bxe5 {[%emt 0:0:3]} Be6 {[%emt 0:0:0]} 23. Rfe1 {[%emt 0:0:57]} Qxa2 {[%emt 0:0:12]} 24. Qe3 {[%emt 0:1:56]} Bd5 {[%emt 0:1:46]} 25. Rb1 {[%emt 0:1:27]} Qxc2 {[%emt 0:1:5]} 26. Rb7 {[%emt 0:0:11]
} Rf7 {[%emt 0:1:4]} 27. h3 {[%emt 0:0:26]} a5 {[%emt 0:0:5]
} 28. Bd6 {[%emt 0:0:6]} e6 {[%emt 0:0:2]} 29. Qb6 {[%emt 0:0:8]} 1-0

[Event "FIDE World Rapid-ch Open 2018"]
[White "Fridman, Daniel"]
[Black "Moiseenko, Vadim"]
[Site "St. Petersburg"]
[Round "4.30"]
[Annotator "ChessBase"]
[Result "1/2-1/2"]
[Date "2018.12.26"]
[WhiteElo "2633"]
[BlackElo "2501"]
[PlyCount "113"]
[TimeControl "900+10"]

1. d4 {[%emt 0:0:0]} Nf6 {[%emt 0:0:0]} 2. Nf3 {[%emt 0:0:0]} b6 {[%emt 0:0:0]
} 3. g3 {[%emt 0:0:0]} Bb7 {[%emt 0:0:0]} 4. Bg2 {[%emt 0:0:0]} e6 {[%emt 0:0:4]} 5. c4 {[%emt 0:0:1]} d5 {[%emt 0:0:6]} 6. Ne5 {[%emt 0:0:19]
} Nbd7 {[%emt 0:1:8]} 7. Qa4 {[%emt 0:0:34]} Bd6 {[%emt 0:0:0]} 8. Nc3 {[%emt 0:0:26]} 0-0 {[%emt 0:3:55]} 9. Nxd7 {[%emt 0:0:33]} Qxd7 {[%emt 0:0:57]} 10. Qxd7 {[%emt 0:0:4]} Nxd7 {[%emt 0:0:1]} 11. cxd5 {[%emt 0:0:2]
} Bb4 {[%emt 0:0:2]} 12. 0-0 {[%emt 0:2:24]} Bxc3 {[%emt 0:0:0]} 13. dxe6 {[%emt 0:0:2]} Bxg2 {[%emt 0:0:7]} 14. Kxg2 {[%emt 0:0:2]} Bxd4 {[%emt 0:0:10]} 15. exd7 {[%emt 0:0:2]} Rad8 {[%emt 0:0:45]} 16. Rd1 {[%emt 0:0:21]
} Be5 {[%emt 0:2:17]} 17. Bf4 {[%emt 0:1:14]} Bxf4 {[%emt 0:0:0]} 18. gxf4 {[%emt 0:0:2]} f5 {[%emt 0:0:3]} 19. Rd5 {[%emt 0:0:58]} Rf7 {[%emt 0:0:7]} 20. Rad1 {[%emt 0:0:3]} g6 {[%emt 0:0:35]} 21. b4 {[%emt 0:0:0]} Re7 {[%emt 0:0:27]} 22. Kf3 {[%emt 0:0:2]} Kf7 {[%emt 0:0:55]} 23. R5d3 {[%emt 0:0:14]} Re4 {[%emt 0:0:56]} 24. b5 {[%emt 0:1:7]} Ke7 {[%emt 0:0:44]
} 25. h4 {[%emt 0:1:0]} h5 {[%emt 0:0:8]} 26. e3 {[%emt 0:0:0]} a6 {[%emt 0:2:5]} 27. bxa6 {[%emt 0:0:37]} Ra4 {[%emt 0:0:1]} 28. R1d2 {[%emt 0:1:27]} Rxa6 {[%emt 0:0:6]} 29. Rd5 {[%emt 0:0:1]} Ra4 {[%emt 0:0:43]
} 30. Re5+ {[%emt 0:0:4]} Kf7 {[%emt 0:0:1]} 31. Kg3 {[%emt 0:0:23]
} Rc4 {[%emt 0:0:23]} 32. f3 {[%emt 0:0:7]} Rc6 {[%emt 0:0:0]} 33. a4 {[%emt 0:0:56]} Re6 {[%emt 0:0:13]} 34. Kf2 {[%emt 0:0:32]} Ke7 {[%emt 0:0:33]} 35. Red5 {[%emt 0:0:4]} Rc6 {[%emt 0:1:24]} 36. R5d4 {[%emt 0:0:8]
} Rc5 {[%emt 0:0:10]} 37. e4 {[%emt 0:0:1]} Ra5 {[%emt 0:0:0]} 38. e5 {[%emt 0:0:12]} Rc5 {[%emt 0:0:10]} 39. Ke3 {[%emt 0:0:27]} Rc3+ {[%emt 0:0:2]} 40. R4d3 {[%emt 0:0:16]} Rc4 {[%emt 0:0:4]} 41. Rd4 {[%emt 0:0:9]
} Rc3+ {[%emt 0:0:23]} 42. Ke2 {[%emt 0:0:6]} Rc5 {[%emt 0:0:0]} 43. Kd1 {[%emt 0:0:11]} Rc3 {[%emt 0:0:3]} 44. Ke2 {[%emt 0:0:20]} Rc5 {[%emt 0:0:2]} 45. Kd1 {[%emt 0:0:51]} Rc6 {[%emt 0:0:6]} 46. R2d3 {[%emt 0:0:10]
} Rc5 {[%emt 0:0:35]} 47. Kd2 {[%emt 0:0:2]} Ra5 {[%emt 0:0:0]} 48. Kc3 {[%emt 0:0:9]} Rc5+ {[%emt 0:0:2]} 49. Rc4 {[%emt 0:0:1]} Rxc4+ {[%emt 0:0:17]} 50. Kxc4 {[%emt 0:0:1]} Rxd7 {[%emt 0:0:14]} 51. Rxd7+ {[%emt 0:0:7]} Kxd7 {[%emt 0:0:1]} 52. Kb5 {[%emt 0:0:6]} c5 {[%emt 0:0:2]
} 53. a5 {[%emt 0:0:10]} bxa5 {[%emt 0:0:3]} 54. Kxc5 {[%emt 0:0:2]
} Ke6 {[%emt 0:0:32]} 55. Kb5 {[%emt 0:0:2]} g5 {[%emt 0:0:0]} 56. fxg5 {[%emt 0:0:3]} Kxe5 {[%emt 0:0:2]} 57. Kxa5 {[%emt 0:0:11]} 1/2-1/2

[Event "FIDE World Rapid-ch Open 2018"]
[White "Bosiocic, Marin"]
[Black "Riazantsev, Alexander"]
[Site "St. Petersburg"]
[Round "4.31"]
[Annotator "ChessBase"]
[Result "1-0"]
[Date "2018.12.26"]
[WhiteElo "2599"]
[BlackElo "2649"]
[PlyCount "127"]
[TimeControl "900+10"]

1. e4 {[%emt 0:0:0]} e6 {[%emt 0:0:12]} 2. d4 {[%emt 0:0:2]} d5 {[%emt 0:0:0]} 3. Nc3 {[%emt 0:0:1]} Bb4 {[%emt 0:0:1]} 4. e5 {[%emt 0:0:4]} c5 {[%emt 0:0:1]} 5. a3 {[%emt 0:0:2]} Bxc3+ {[%emt 0:0:1]} 6. bxc3 {[%emt 0:0:1]
} Ne7 {[%emt 0:0:1]} 7. h4 {[%emt 0:0:16]} b6 {[%emt 0:0:23]} 8. h5 {[%emt 0:0:34]} h6 {[%emt 0:0:1]} 9. Nf3 {[%emt 0:0:15]} Qc7 {[%emt 0:0:24]
} 10. Bd3 {[%emt 0:0:20]} Ba6 {[%emt 0:0:2]} 11. 0-0 {[%emt 0:0:0]} Bxd3 {[%emt 0:0:1]} 12. cxd3 {[%emt 0:0:1]} cxd4 {[%emt 0:0:37]} 13. cxd4 {[%emt 0:0:3]} Nbc6 {[%emt 0:0:1]} 14. a4 {[%emt 0:0:29]} 0-0 {[%emt 0:0:13]
} 15. Ba3 {[%emt 0:0:2]} Qd7 {[%emt 0:0:30]} 16. Qd2 {[%emt 0:0:0]} Rac8 {[%emt 0:2:58]} 17. Rfb1 {[%emt 0:0:36]} f6 {[%emt 0:0:57]} 18. Bxe7 Qxe7 {[%emt 0:0:48]} 19. Nh4 {[%emt 0:1:17]} Qf7 {[%emt 0:0:56]} 20. Ng6 {[%emt 0:0:2]} Rfe8 {[%emt 0:0:1]} 21. Qe3 {[%emt 0:2:47]} fxe5 {[%emt 0:0:10]
} 22. dxe5 {[%emt 0:0:8]} Qf5 {[%emt 0:0:1]} 23. Qh3 {[%emt 0:2:4]
} Qxh3 {[%emt 0:1:19]} 24. gxh3 Nd4 25. Kg2 {[%emt 0:1:6]} Rc3 {[%emt 0:4:23]} 26. Rd1 {[%emt 0:0:2]} Kf7 {[%emt 0:0:10]} 27. Rab1 {[%emt 0:0:54]
} Nb3 {[%emt 0:0:36]} 28. h4 {[%emt 0:2:3]} Rec8 {[%emt 0:0:0]} 29. Rb2 {[%emt 0:0:43]} R8c6 {[%emt 0:1:14]} 30. Rdb1 {[%emt 0:0:21]} Nc5 {[%emt 0:0:39]} 31. a5 {[%emt 0:0:29]} Nxd3 {[%emt 0:0:5]} 32. axb6 {[%emt 0:0:2]
} Rxb6 {[%emt 0:2:49]} 33. Rxb6 axb6 34. Rxb6 {[%emt 0:0:3]} Nc5 {[%emt 0:0:36]} 35. Rb8 {[%emt 0:1:52]} Nd7 {[%emt 0:0:0]} 36. Rd8 {[%emt 0:0:6]
} Rc7 {[%emt 0:0:1]} 37. Kf3 {[%emt 0:0:35]} Ra7 {[%emt 0:0:0]} 38. Ke3 {[%emt 0:0:3]} Ra3+ {[%emt 0:0:2]} 39. Kd4 {[%emt 0:0:4]} Ra4+ {[%emt 0:0:2]} 40. Kc3 {[%emt 0:0:1]} Ra3+ {[%emt 0:0:18]} 41. Kb4 {[%emt 0:0:15]
} Ra7 {[%emt 0:0:1]} 42. f4 {[%emt 0:0:14]} Rc7 {[%emt 0:0:0]} 43. Nh8+ {[%emt 0:0:45]} Ke7 {[%emt 0:0:0]} 44. Rg8 {[%emt 0:0:4]} Rc4+ {[%emt 0:0:10]} 45. Ka3 {[%emt 0:0:5]} Nc5 {[%emt 0:0:41]} 46. Rxg7+ {[%emt 0:0:21]
} Ke8 {[%emt 0:0:10]} 47. Ng6 {[%emt 0:0:19]} d4 {[%emt 0:0:0]} 48. f5 {[%emt 0:0:29]} exf5 49. e6 Ra4+ {[%emt 0:0:46]} 50. Kb2 {[%emt 0:0:12]
} Rb4+ {[%emt 0:0:8]} 51. Kc1 {[%emt 0:0:17]} Rc4+ {[%emt 0:0:0]} 52. Kd1 {[%emt 0:0:3]} Nxe6 {[%emt 0:0:9]} 53. Re7+ {[%emt 0:0:1]
} Kd8 {[%emt 0:0:1]} 54. Rxe6 {[%emt 0:0:1]} Kd7 {[%emt 0:0:18]} 55. Rf6 {[%emt 0:0:1]
} Rc5 {[%emt 0:0:13]} 56. Kd2 {[%emt 0:0:6]} Ra5 {[%emt 0:0:0]} 57. Kd3 {[%emt 0:0:4]} Rd5 {[%emt 0:0:1]} 58. Nf4 {[%emt 0:0:6]} Re5 {[%emt 0:0:33]} 59. Ng6 {[%emt 0:0:2]} Rd5 {[%emt 0:0:0]} 60. Ra6 {[%emt 0:0:2]
} Ke8 {[%emt 0:0:1]} 61. Nf4 {[%emt 0:0:35]} Re5 {[%emt 0:0:0]} 62. Re6+ {[%emt 0:0:3]} Rxe6 {[%emt 0:0:1]} 63. Nxe6 Ke7 64. Nf4 {[%emt 0:0:3]
} 1-0

[Event "FIDE World Rapid-ch Open 2018"]
[White "Sychev, Klementy"]
[Black "Sargissian, Gabriel"]
[Site "St. Petersburg"]
[Round "4.32"]
[Annotator "ChessBase"]
[Result "0-1"]
[Date "2018.12.26"]
[WhiteElo "2537"]
[BlackElo "2689"]
[PlyCount "102"]
[TimeControl "900+10"]

1. Nf3 {[%emt 0:0:0]} d5 {[%emt 0:0:0]} 2. g3 {[%emt 0:0:0]} Bg4 {[%emt 0:0:0]
} 3. Bg2 {[%emt 0:0:0]} c6 {[%emt 0:0:0]} 4. 0-0 {[%emt 0:0:0]} e6 {[%emt 0:0:6]} 5. h3 {[%emt 0:0:34]} Bh5 {[%emt 0:0:4]} 6. d3 {[%emt 0:0:21]
} Nf6 {[%emt 0:0:4]} 7. Qe1 {[%emt 0:1:48]} Be7 {[%emt 0:0:0]} 8. e4 {[%emt 0:0:2]} 0-0 {[%emt 0:0:4]} 9. Nbd2 {[%emt 0:0:18]} Nbd7 {[%emt 0:0:12]} 10. Kh1 {[%emt 0:1:41]} a5 {[%emt 0:0:42]} 11. Nh2 {[%emt 0:0:0]} Ne8 {[%emt 0:1:44]} 12. g4 {[%emt 0:1:21]} Bg6 {[%emt 0:0:1]} 13. f4 {[%emt 0:0:1]} dxe4 {[%emt 0:0:53]} 14. dxe4 {[%emt 0:0:38]} f6 {[%emt 0:0:3]
} 15. Qe2 {[%emt 0:0:21]} e5 {[%emt 0:0:24]} 16. f5 {[%emt 0:0:0]} Bf7 {[%emt 0:0:1]} 17. h4 {[%emt 0:0:47]} Nd6 {[%emt 0:0:10]} 18. Bf3 {[%emt 0:0:21]} Kh8 {[%emt 0:0:21]} 19. Rg1 {[%emt 0:0:48]} a4 {[%emt 0:0:0]} 20. a3 {[%emt 0:0:34]} Nb5 {[%emt 0:0:12]} 21. Qg2 {[%emt 0:0:19]} g6 {[%emt 0:2:16]} 22. Ndf1 {[%emt 0:1:8]} Nd4 {[%emt 0:0:17]} 23. Ng3 {[%emt 0:0:35]
} Rg8 {[%emt 0:1:56]} 24. Be3 {[%emt 0:0:25]} gxf5 {[%emt 0:0:0]} 25. Nxf5 {[%emt 0:0:17]} Nxf5 {[%emt 0:1:12]} 26. exf5 {[%emt 0:0:2]} Bc5 {[%emt 0:0:1]} 27. Bxc5 {[%emt 0:0:25]} Nxc5 {[%emt 0:0:1]} 28. Rad1 {[%emt 0:0:1]
} Qe7 {[%emt 0:0:14]} 29. Qf2 {[%emt 0:0:45]} Rad8 {[%emt 0:0:0]} 30. Qe3 {[%emt 0:0:6]} Bd5 {[%emt 0:1:12]} 31. g5 {[%emt 0:0:25]} b6 {[%emt 0:1:12]
} 32. Rde1 {[%emt 0:1:6]} Nd7 {[%emt 0:0:36]} 33. g6 {[%emt 0:0:0]} hxg6 {[%emt 0:0:4]} 34. fxg6 {[%emt 0:0:7]} Kg7 {[%emt 0:0:3]} 35. Bxd5 {[%emt 0:0:35]} cxd5 {[%emt 0:0:2]} 36. Qf3 {[%emt 0:0:14]} Rh8 {[%emt 0:0:49]
} 37. Rg4 {[%emt 0:0:20]} e4 {[%emt 0:0:15]} 38. Qg3 {[%emt 0:0:0]} Ne5 {[%emt 0:0:11]} 39. Rf4 {[%emt 0:0:13]} Rh6 {[%emt 0:0:16]} 40. Rg1 {[%emt 0:0:2]} Rdh8 {[%emt 0:0:14]} 41. Qf2 {[%emt 0:0:9]} Rxg6 {[%emt 0:0:32]
} 42. Qxb6 {[%emt 0:0:8]} Rxg1+ {[%emt 0:0:41]} 43. Qxg1+ {[%emt 0:0:2]
} Kf7 {[%emt 0:0:1]} 44. Qd4 {[%emt 0:0:9]} Qe6 {[%emt 0:0:0]} 45. Qxa4 {[%emt 0:0:20]} Ng6 {[%emt 0:0:11]} 46. Rg4 {[%emt 0:0:12]} e3 {[%emt 0:0:33]} 47. Qa7+ {[%emt 0:0:13]} Ne7 {[%emt 0:0:2]} 48. Qa5 {[%emt 0:0:16]
} e2 {[%emt 0:0:15]} 49. Qe1 {[%emt 0:0:2]} Nf5 {[%emt 0:0:0]} 50. a4 {[%emt 0:0:19]} Nxh4 {[%emt 0:0:15]} 51. a5 {[%emt 0:0:15]} Nf3 {[%emt 0:0:22]} 0-1

[Event "FIDE World Rapid-ch Open 2018"]
[White "Dreev, Aleksey"]
[Black "Hovhannisyan, Robert"]
[Site "St. Petersburg"]
[Round "4.33"]
[Annotator "ChessBase"]
[Result "1/2-1/2"]
[Date "2018.12.26"]
[WhiteElo "2670"]
[BlackElo "2637"]
[PlyCount "57"]
[TimeControl "900+10"]

1. d4 {[%emt 0:0:0]} d5 {[%emt 0:0:0]} 2. c4 {[%emt 0:0:0]} c6 {[%emt 0:0:0]} 3. Nf3 {[%emt 0:0:0]} Nf6 {[%emt 0:0:0]} 4. Qb3 {[%emt 0:0:5]} dxc4 {[%emt 0:0:0]} 5. Qxc4 {[%emt 0:0:1]} Bg4 {[%emt 0:0:4]} 6. Nbd2 {[%emt 0:0:20]
} Nbd7 {[%emt 0:0:3]} 7. g3 {[%emt 0:0:9]} e6 {[%emt 0:0:4]
} 8. Bg2 {[%emt 0:0:3]} Be7 {[%emt 0:0:6]} 9. 0-0 {[%emt 0:0:17]} 0-0 {[%emt 0:0:3]
} 10. b3 {[%emt 0:0:38]} a5 {[%emt 0:0:11]} 11. a3 {[%emt 0:0:0]} Rc8 {[%emt 0:0:14]} 12. h3 {[%emt 0:2:13]} Bf5 {[%emt 0:0:27]} 13. e3 {[%emt 0:0:10]
} Ne4 {[%emt 0:0:55]} 14. Bb2 {[%emt 0:0:47]} b5 {[%emt 0:0:0]} 15. Qe2 {[%emt 0:0:13]} Qb6 {[%emt 0:0:10]} 16. Nh4 {[%emt 0:4:8]} Bxh4 {[%emt 0:0:5]} 17. Nxe4 {[%emt 0:0:2]} Be7 {[%emt 0:0:6]} 18. Rfd1 {[%emt 0:0:11]
} Rfd8 {[%emt 0:0:9]} 19. Rac1 {[%emt 0:0:30]} h6 {[%emt 0:0:0]} 20. Qe1 {[%emt 0:0:44]} b4 {[%emt 0:0:54]} 21. a4 {[%emt 0:0:20]} c5 {[%emt 0:0:25]
} 22. Qe2 {[%emt 0:0:19]} Bxe4 {[%emt 0:1:34]} 23. Bxe4 {[%emt 0:0:2]
} Bf6 {[%emt 0:0:2]} 24. dxc5 {[%emt 0:1:24]} Nxc5 {[%emt 0:0:0]} 25. Bxf6 {[%emt 0:0:3]} gxf6 {[%emt 0:0:45]} 26. Rxd8+ {[%emt 0:0:0]} Rxd8 {[%emt 0:1:39]} 27. Qc4 {[%emt 0:0:43]} Nxe4 {[%emt 0:1:0]} 28. Qxe4 {[%emt 0:0:2]} Qd6 {[%emt 0:0:54]} 29. Qg4+ {[%emt 0:3:29]} 1/2-1/2

[Event "FIDE World Rapid-ch Open 2018"]
[White "Usmanov, Vasily"]
[Black "Savchenko, Boris"]
[Site "St. Petersburg"]
[Round "4.34"]
[Annotator "ChessBase"]
[Result "1/2-1/2"]
[Date "2018.12.26"]
[WhiteElo "2450"]
[BlackElo "2562"]
[PlyCount "128"]
[TimeControl "900+10"]

1. Nf3 {[%emt 0:0:0]} g6 {[%emt 0:1:40]} 2. c4 {[%emt 0:0:9]} Bg7 {[%emt 0:0:18]
} 3. Nc3 {[%emt 0:0:20]} e5 {[%emt 0:1:24]} 4. d4 {[%emt 0:0:0]} exd4 {[%emt 0:0:26]} 5. Nxd4 {[%emt 0:0:2]} Nc6 {[%emt 0:0:5]} 6. Nxc6 {[%emt 0:0:15]} bxc6 {[%emt 0:1:17]} 7. g3 {[%emt 0:0:2]} h5 {[%emt 0:0:0]} 8. h4 {[%emt 0:0:18]} Qe7 {[%emt 0:2:58]} 9. Bg2 {[%emt 0:0:43]} Qb4 {[%emt 0:0:51]} 10. 0-0 {[%emt 0:1:45]} Nf6 {[%emt 0:0:59]} 11. Qa4 {[%emt 0:3:14]
} Qxa4 {[%emt 0:1:44]} 12. Nxa4 {[%emt 0:0:2]} Ng4 {[%emt 0:0:0]} 13. Bf4 {[%emt 0:1:5]} Be5 {[%emt 0:1:32]} 14. Bxe5 {[%emt 0:0:20]} Nxe5 {[%emt 0:0:2]} 15. b3 {[%emt 0:0:5]} Rb8 {[%emt 0:0:36]} 16. Rfd1 {[%emt 0:0:16]
} 0-0 {[%emt 0:0:11]} 17. Rd2 {[%emt 0:1:15]} Re8 {[%emt 0:0:0]} 18. Rc1 {[%emt 0:0:31]} Re7 {[%emt 0:1:2]} 19. Rc3 {[%emt 0:0:3]} Kf8 {[%emt 0:0:7]} 20. Kf1 {[%emt 0:1:57]} a5 {[%emt 0:1:7]} 21. Ke1 {[%emt 0:0:0]} Rb4 {[%emt 0:0:32]} 22. a3 {[%emt 0:1:9]} Rb8 {[%emt 0:0:2]} 23. Kd1 {[%emt 0:0:8]} d6 {[%emt 0:0:46]} 24. f4 {[%emt 0:0:32]} Ng4 {[%emt 0:0:0]} 25. Bxc6 {[%emt 0:0:16]} Bf5 {[%emt 0:0:26]} 26. Rd4 {[%emt 0:0:35]} Ne3+ {[%emt 0:0:8]} 27. Kd2 {[%emt 0:0:11]} Nf1+ {[%emt 0:0:11]} 28. Ke1 {[%emt 0:0:12]
} Ne3 {[%emt 0:0:1]} 29. Rd2 {[%emt 0:0:48]} Nc2+ {[%emt 0:0:0]} 30. Rdxc2 {[%emt 0:0:6]} Bxc2 {[%emt 0:0:2]} 31. Rxc2 {[%emt 0:0:1]} Rxb3 {[%emt 0:0:1]} 32. Rc3 {[%emt 0:0:27]} Re3 {[%emt 0:0:4]} 33. Kd2 {[%emt 0:0:23]
} Rxg3 {[%emt 0:0:2]} 34. Rxb3 {[%emt 0:0:42]} Rxb3 {[%emt 0:0:0]} 35. Nc3 {[%emt 0:0:3]} Rxa3 {[%emt 0:0:4]} 36. Ba4 {[%emt 0:0:3]} Ra1 {[%emt 0:0:11]} 37. Bd1 {[%emt 0:0:2]} f6 {[%emt 0:0:51]} 38. e3 {[%emt 0:1:25]
} a4 {[%emt 0:0:5]} 39. Bxa4 {[%emt 0:0:13]} Rh1 {[%emt 0:0:0]} 40. Nd5 {[%emt 0:0:7]} Rxh4 {[%emt 0:0:10]} 41. Nxf6 {[%emt 0:0:4]} Rh1 {[%emt 0:0:8]} 42. Bc6 {[%emt 0:0:2]} Rg1 {[%emt 0:0:5]} 43. Ke2 {[%emt 0:0:10]
} Ke7 {[%emt 0:0:15]} 44. Ne4 {[%emt 0:0:20]} Rc1 {[%emt 0:0:0]} 45. Bd5 {[%emt 0:0:2]} c6 {[%emt 0:0:10]} 46. Bxc6 {[%emt 0:0:17]} Rxc4 {[%emt 0:0:3]} 47. Bd5 {[%emt 0:0:1]} Ra4 {[%emt 0:0:5]} 48. Ng5 {[%emt 0:0:11]
} Ra5 {[%emt 0:0:7]} 49. Bg8 {[%emt 0:0:40]} d5 {[%emt 0:0:0]} 50. Kf3 {[%emt 0:0:2]} Kf6 {[%emt 0:0:1]} 51. Be6 {[%emt 0:0:36]} d4 {[%emt 0:0:3]} 52. Bc4 {[%emt 0:0:2]} Ra3 {[%emt 0:0:6]} 53. Ke4 {[%emt 0:0:11]
} dxe3 {[%emt 0:0:14]} 54. Bd3 {[%emt 0:0:13]} h4 {[%emt 0:0:0]} 55. Kxe3 {[%emt 0:0:4]} Kg7 {[%emt 0:0:16]} 56. Ke2 {[%emt 0:0:48]} Kh6 {[%emt 0:0:5]} 57. Be4 {[%emt 0:0:5]} h3 {[%emt 0:0:3]} 58. Kf2 {[%emt 0:0:16]
} Kh5 {[%emt 0:0:5]} 59. Bf3+ {[%emt 0:0:27]} Kh4 {[%emt 0:0:0]} 60. Bd1 {[%emt 0:0:2]} Ra2+ {[%emt 0:0:18]} 61. Be2 {[%emt 0:0:6]} Rb2 {[%emt 0:0:4]} 62. Nf3+ {[%emt 0:0:10]} Kg4 {[%emt 0:0:1]} 63. Ng1+ {[%emt 0:0:3]
} Rxe2+ {[%emt 0:0:10]} 64. Nxe2 {[%emt 0:0:2]} g5 {[%emt 0:0:0]} 1/2-1/2

[Event "FIDE World Rapid-ch Open 2018"]
[White "Yudin, Sergei"]
[Black "Khusnutdinov, Rustam"]
[Site "St. Petersburg"]
[Round "4.35"]
[Annotator "ChessBase"]
[Result "1/2-1/2"]
[Date "2018.12.26"]
[WhiteElo "2507"]
[BlackElo "2470"]
[PlyCount "21"]
[TimeControl "900+10"]

1. e4 {[%emt 0:0:0]} e6 {[%emt 0:0:0]} 2. d4 {[%emt 0:0:0]} d5 {[%emt 0:0:0]} 3. Nd2 {[%emt 0:0:0]} c5 {[%emt 0:0:11]} 4. Ngf3 {[%emt 0:0:0]} cxd4 {[%emt 0:0:2]} 5. Nxd4 {[%emt 0:0:3]} Nf6 {[%emt 0:0:2]} 6. exd5 {[%emt 0:0:12]
} Nxd5 {[%emt 0:0:1]} 7. N2f3 {[%emt 0:0:37]} Bb4+ {[%emt 0:0:0]} 8. Bd2 {[%emt 0:0:3]} 0-0 {[%emt 0:0:2]} 9. c4 {[%emt 0:0:52]} Bxd2+ {[%emt 0:0:51]} 10. Qxd2 {[%emt 0:0:3]} Nf6 {[%emt 0:4:47]} 11. Be2 {[%emt 0:1:32]
} 1/2-1/2